[Event "Early-Titled-Tuesday-Blitz-March-12-2024"]
[Site "Chess.com"]
[Date "2024.03.12"]
[Round "6"]
[White "KuzubovYuriy"]
[Black "FairChess_on_YouTube"]
[Result "1-0"]
[WhiteElo "2923"]
[BlackElo "3108"]
[TimeControl "180+1"]
[EndTime "9:07:14 PDT"]
[Termination "KuzubovYuriy won on time"]

1. d4 {[%clk 0:03:00.9]} 1... g6 {[%clk 0:02:56.2]} 2. e4 {[%clk 0:02:58.8]}
2... Bg7 {[%clk 0:02:56.5]} 3. Nf3 {[%clk 0:02:58.3]} 3... d6 {[%clk 0:02:55.8]}
4. c3 {[%clk 0:02:58.4]} 4... Nf6 {[%clk 0:02:55.7]} 5. Bd3 {[%clk 0:02:58.2]}
5... O-O {[%clk 0:02:55.8]} 6. O-O {[%clk 0:02:58.4]} 6... Nc6 {[%clk
0:02:55.1]} 7. Re1 {[%clk 0:02:55]} 7... e5 {[%clk 0:02:55.2]} 8. dxe5 {[%clk
0:02:55.2]} 8... Nxe5 {[%clk 0:02:46.8]} 9. Nxe5 {[%clk 0:02:54.9]} 9... dxe5
{[%clk 0:02:47.7]} 10. Bg5 {[%clk 0:02:52.9]} 10... h6 {[%clk 0:02:46.8]} 11.
Bh4 {[%clk 0:02:52.8]} 11... Qe8 {[%clk 0:02:36.8]} 12. Na3 {[%clk 0:02:43.3]}
12... Nh5 {[%clk 0:02:34.5]} 13. Bb5 {[%clk 0:02:27.6]} 13... c6 {[%clk
0:02:16.6]} 14. Bf1 {[%clk 0:02:26]} 14... Be6 {[%clk 0:02:12.7]} 15. Nc4 {[%clk
0:02:24.2]} 15... Nf4 {[%clk 0:02:03.7]} 16. f3 {[%clk 0:02:00.9]} 16... b5
{[%clk 0:01:48.7]} 17. Na5 {[%clk 0:01:56.1]} 17... Qb8 {[%clk 0:01:41.4]} 18.
b4 {[%clk 0:01:50.7]} 18... Rc8 {[%clk 0:01:34.2]} 19. Bf2 {[%clk 0:01:31.2]}
19... c5 {[%clk 0:01:26.3]} 20. Bxc5 {[%clk 0:01:19]} 20... Rxc5 {[%clk
0:01:21.3]} 21. bxc5 {[%clk 0:01:19.1]} 21... Bf8 {[%clk 0:01:03.8]} 22. Nb3
{[%clk 0:01:12.3]} 22... a5 {[%clk 0:00:59.1]} 23. g3 {[%clk 0:00:59.6]} 23...
Nh5 {[%clk 0:00:46.4]} 24. Rb1 {[%clk 0:00:54.6]} 24... a4 {[%clk 0:00:45.6]}
25. Nc1 {[%clk 0:00:54.6]} 25... Qc7 {[%clk 0:00:38.1]} 26. Rxb5 {[%clk
0:00:52.7]} 26... Bxc5+ {[%clk 0:00:37.8]} 27. Kg2 {[%clk 0:00:48]} 27... Rd8
{[%clk 0:00:33.9]} 28. Qc2 {[%clk 0:00:40.4]} 28... Ba7 {[%clk 0:00:31.1]} 29.
Nd3 {[%clk 0:00:30.1]} 29... Bc4 {[%clk 0:00:19.4]} 30. Rb4 {[%clk 0:00:28.8]}
30... a3 {[%clk 0:00:15.6]} 31. Rd1 {[%clk 0:00:26]} 31... Rc8 {[%clk
0:00:12.8]} 32. Nc1 {[%clk 0:00:20.8]} 32... Be6 {[%clk 0:00:12.9]} 33. Nb3
{[%clk 0:00:19.9]} 33... Qxc3 {[%clk 0:00:12.2]} 34. Qxc3 {[%clk 0:00:20.1]}
34... Rxc3 {[%clk 0:00:13]} 35. Rd2 {[%clk 0:00:19.6]} 35... Be3 {[%clk
0:00:11.9]} 36. Re2 {[%clk 0:00:19.8]} 36... Nf6 {[%clk 0:00:08]} 37. Nd2 {[%clk
0:00:17]} 37... Bxa2 {[%clk 0:00:05.5]} 38. Nb1 {[%clk 0:00:16.2]} 38... Bxb1
{[%clk 0:00:05.2]} 39. Rxb1 {[%clk 0:00:17.1]} 39... Bd4 {[%clk 0:00:04.6]} 40.
Ra2 {[%clk 0:00:16.6]} 40... Nd7 {[%clk 0:00:04.5]} 41. Rb7 {[%clk 0:00:15.5]}
41... Nc5 {[%clk 0:00:03.9]} 42. Ra7 {[%clk 0:00:14.8]} 42... Nxe4 {[%clk
0:00:04]} 43. Ra8+ {[%clk 0:00:15.1]} 43... Kg7 {[%clk 0:00:03.8]} 44. fxe4
{[%clk 0:00:15.9]} 44... Bc5 {[%clk 0:00:04.4]} 45. Be2 {[%clk 0:00:15.8]} 45...
Re3 {[%clk 0:00:04.6]} 46. Bf3 {[%clk 0:00:16]} 46... h5 {[%clk 0:00:04.9]} 47.
Ra5 {[%clk 0:00:15.9]} 47... Bb4 {[%clk 0:00:04.7]} 48. Rxe5 {[%clk 0:00:16.1]}
48... Bc3 {[%clk 0:00:03.9]} 49. Rxa3 {[%clk 0:00:14.9]} 49... Rxf3 {[%clk
0:00:04.4]} 50. Kxf3 {[%clk 0:00:14.6]} 50... Bxe5 {[%clk 0:00:04.1]} 51. Ra6
{[%clk 0:00:14.6]} 51... Bd4 {[%clk 0:00:04.2]} 52. h3 {[%clk 0:00:14.3]} 52...
Be5 {[%clk 0:00:04.5]} 53. g4 {[%clk 0:00:14.4]} 53... hxg4+ {[%clk 0:00:05.1]}
54. hxg4 {[%clk 0:00:11.4]} 54... Kh6 {[%clk 0:00:05.4]} 55. Ra7 {[%clk
0:00:11.5]} 55... f6 {[%clk 0:00:05.4]} 56. Ra8 {[%clk 0:00:10.8]} 56... Kg5
{[%clk 0:00:05.8]} 57. Ra5 {[%clk 0:00:10.8]} 57... Kh4 {[%clk 0:00:05.2]} 58.
Ra7 {[%clk 0:00:11.2]} 58... Kg5 {[%clk 0:00:05.5]} 59. Rh7 {[%clk 0:00:11.3]}
59... Bd4 {[%clk 0:00:05.3]} 60. Rh1 {[%clk 0:00:11.4]} 60... Be5 {[%clk
0:00:05.6]} 61. Rd1 {[%clk 0:00:10.9]} 61... Bc3 {[%clk 0:00:05.1]} 62. Rf1
{[%clk 0:00:09.1]} 62... Be5 {[%clk 0:00:05.7]} 63. Rg1 {[%clk 0:00:09.6]} 63...
Bd4 {[%clk 0:00:05]} 64. Rg2 {[%clk 0:00:10.1]} 64... Be5 {[%clk 0:00:05.4]} 65.
Ke3 {[%clk 0:00:10.5]} 65... Kh4 {[%clk 0:00:02.6]} 66. g5 {[%clk 0:00:10.6]}
66... fxg5 {[%clk 0:00:02.5]} 67. Kf3 {[%clk 0:00:10.8]} 67... Bf4 {[%clk
0:00:02.9]} 68. Rg1 {[%clk 0:00:09]} 68... Kh3 {[%clk 0:00:02]} 69. Rh1+ {[%clk
0:00:09.5]} 69... Bh2 {[%clk 0:00:02.9]} 70. Rxh2+ {[%clk 0:00:09.9]} 70... Kxh2
{[%clk 0:00:03.8]} 71. Kg4 {[%clk 0:00:10.4]} 1-0

[Event "Early-Titled-Tuesday-Blitz-March-12-2024"]
[Site "Chess.com"]
[Date "2024.03.12"]
[Round "6"]
[White "Andrei_Skvortsov"]
[Black "Maxfan2008"]
[Result "0-1"]
[WhiteElo "2758"]
[BlackElo "2614"]
[TimeControl "180+1"]
[EndTime "9:07:22 PDT"]
[Termination "Maxfan2008 won on time"]

1. e4 {[%clk 0:02:59.2]} 1... c5 {[%clk 0:02:59.8]} 2. d4 {[%clk 0:02:59.1]}
2... cxd4 {[%clk 0:02:59.4]} 3. Qxd4 {[%clk 0:03:00]} 3... Nc6 {[%clk 0:03:00]}
4. Qd3 {[%clk 0:03:00]} 4... g6 {[%clk 0:02:59.3]} 5. Nc3 {[%clk 0:03:00.7]}
5... Bg7 {[%clk 0:02:59.6]} 6. Nf3 {[%clk 0:03:01.4]} 6... d6 {[%clk 0:03:00]}
7. Be2 {[%clk 0:03:02]} 7... a6 {[%clk 0:03:00.2]} 8. O-O {[%clk 0:03:01.9]}
8... Nf6 {[%clk 0:03:00.4]} 9. Nd5 {[%clk 0:03:02.4]} 9... O-O {[%clk
0:03:00.6]} 10. Bg5 {[%clk 0:03:02.4]} 10... Nd7 {[%clk 0:02:47.1]} 11. c3
{[%clk 0:03:01.6]} 11... h6 {[%clk 0:02:43.2]} 12. Bh4 {[%clk 0:03:00.4]} 12...
g5 {[%clk 0:02:43]} 13. Bg3 {[%clk 0:03:00]} 13... Nc5 {[%clk 0:02:43.2]} 14.
Qc2 {[%clk 0:02:59.6]} 14... f5 {[%clk 0:02:41.3]} 15. exf5 {[%clk 0:02:58.8]}
15... Bxf5 {[%clk 0:02:41.2]} 16. Qd1 {[%clk 0:02:58.1]} 16... Bg6 {[%clk
0:02:17.3]} 17. Bc4 {[%clk 0:02:53.2]} 17... Kh7 {[%clk 0:02:11.5]} 18. Re1
{[%clk 0:02:48.8]} 18... b5 {[%clk 0:01:58.8]} 19. Bf1 {[%clk 0:02:45]} 19... e6
{[%clk 0:01:53.6]} 20. Bxd6 {[%clk 0:02:42.5]} 20... Rf5 {[%clk 0:01:27.3]} 21.
Ne3 {[%clk 0:02:38]} 21... Ne4 {[%clk 0:01:06.6]} 22. Nxf5 {[%clk 0:02:35.7]}
22... exf5 {[%clk 0:01:06.6]} 23. Ba3 {[%clk 0:02:25.9]} 23... Qb6 {[%clk
0:01:03.5]} 24. Qc2 {[%clk 0:02:16.8]} 24... Rc8 {[%clk 0:00:53.2]} 25. Re3
{[%clk 0:01:37.6]} 25... a5 {[%clk 0:00:47.1]} 26. Qb3 {[%clk 0:01:07]} 26... b4
{[%clk 0:00:40.5]} 27. cxb4 {[%clk 0:01:07.2]} 27... axb4 {[%clk 0:00:40.7]} 28.
Rc1 {[%clk 0:01:07.8]} 28... f4 {[%clk 0:00:39.9]} 29. Rxe4 {[%clk 0:00:58.2]}
29... Bxe4 {[%clk 0:00:39.5]} 30. Bxb4 {[%clk 0:00:57.1]} 30... Nd4 {[%clk
0:00:30.3]} 31. Qd1 {[%clk 0:00:14.4]} 31... Rxc1 {[%clk 0:00:30]} 32. Qxc1
{[%clk 0:00:15.1]} 32... Qxb4 {[%clk 0:00:30.6]} 33. Nxd4 {[%clk 0:00:14.7]}
33... Qxd4 {[%clk 0:00:31.5]} 34. b3 {[%clk 0:00:13.5]} 34... f3 {[%clk
0:00:30.8]} 35. gxf3 {[%clk 0:00:08.9]} 35... Bxf3 {[%clk 0:00:30.8]} 36. h3
{[%clk 0:00:09.3]} 36... g4 {[%clk 0:00:28.8]} 37. Bg2 {[%clk 0:00:08.5]} 37...
Bxg2 {[%clk 0:00:18.7]} 38. Kxg2 {[%clk 0:00:09]} 38... gxh3+ {[%clk 0:00:18.9]}
39. Kxh3 {[%clk 0:00:09.5]} 39... Qxf2 {[%clk 0:00:18.7]} 40. Qb1+ {[%clk
0:00:07.4]} 40... Kh8 {[%clk 0:00:18.7]} 41. Qe4 {[%clk 0:00:05.1]} 41... Qf1+
{[%clk 0:00:18.5]} 42. Kg4 {[%clk 0:00:04]} 42... Qg1+ {[%clk 0:00:16.8]} 43.
Kh3 {[%clk 0:00:03.3]} 43... Qf1+ {[%clk 0:00:16.1]} 44. Kg4 {[%clk 0:00:03.4]}
44... Qf7 {[%clk 0:00:16.2]} 45. Qd3 {[%clk 0:00:02.6]} 45... Qe6+ {[%clk
0:00:15.9]} 46. Kg3 {[%clk 0:00:02.9]} 46... Be5+ {[%clk 0:00:16.3]} 47. Kf3
{[%clk 0:00:02.8]} 47... Qh3+ {[%clk 0:00:16.1]} 48. Ke4 {[%clk 0:00:02.9]}
48... Qe6 {[%clk 0:00:10.9]} 49. Qd5 {[%clk 0:00:03.1]} 49... Qxd5+ {[%clk
0:00:04.5]} 50. Kxd5 {[%clk 0:00:01.3]} 50... Bc3 {[%clk 0:00:05.2]} 51. Ke4
{[%clk 0:00:01.3]} 51... h5 {[%clk 0:00:05.4]} 52. Kf3 {[%clk 0:00:01.9]} 52...
Kg7 {[%clk 0:00:05.6]} 53. Kg2 {[%clk 0:00:02.5]} 53... Kg6 {[%clk 0:00:06]} 54.
a4 {[%clk 0:00:03.3]} 54... Kg5 {[%clk 0:00:06]} 55. a5 {[%clk 0:00:04]} 55...
Bxa5 {[%clk 0:00:05.8]} 56. b4 {[%clk 0:00:04.9]} 56... Bb6 {[%clk 0:00:06.1]}
57. Kh1 {[%clk 0:00:05.7]} 57... Kg4 {[%clk 0:00:07]} 58. b5 {[%clk 0:00:06.6]}
58... h4 {[%clk 0:00:07.6]} 59. Kg2 {[%clk 0:00:06.6]} 59... h3+ {[%clk
0:00:07.6]} 60. Kh2 {[%clk 0:00:07.5]} 60... Kh4 {[%clk 0:00:06.9]} 61. Kh1
{[%clk 0:00:08.4]} 61... Bc5 {[%clk 0:00:05.3]} 62. b6 {[%clk 0:00:09.3]} 62...
Kg3 {[%clk 0:00:03.6]} 63. b7 {[%clk 0:00:09.1]} 63... Bd6 {[%clk 0:00:03.7]}
64. Kg1 {[%clk 0:00:09.7]} 64... h2+ {[%clk 0:00:03.4]} 65. Kh1 {[%clk
0:00:10.4]} 65... Kh3 {[%clk 0:00:03]} 0-1

[Event "Early-Titled-Tuesday-Blitz-March-12-2024"]
[Site "Chess.com"]
[Date "2024.03.12"]
[Round "6"]
[White "alexrustemov"]
[Black "Rud_Makarian"]
[Result "0-1"]
[WhiteElo "2859"]
[BlackElo "3016"]
[TimeControl "180+1"]
[EndTime "9:07:32 PDT"]
[Termination "Rud_Makarian won on time"]

1. d4 {[%clk 0:03:00.9]} 1... d5 {[%clk 0:02:58.4]} 2. Bg5 {[%clk 0:03:00.2]}
2... f6 {[%clk 0:02:56]} 3. Bd2 {[%clk 0:02:59.5]} 3... e5 {[%clk 0:02:53.6]} 4.
e3 {[%clk 0:02:51.2]} 4... Bd6 {[%clk 0:02:40.4]} 5. c4 {[%clk 0:02:47.4]} 5...
Nh6 {[%clk 0:02:32]} 6. Nc3 {[%clk 0:02:38.6]} 6... O-O {[%clk 0:02:21.1]} 7.
dxe5 {[%clk 0:02:28.8]} 7... fxe5 {[%clk 0:02:09.2]} 8. cxd5 {[%clk 0:02:28.3]}
8... Bg4 {[%clk 0:01:59.3]} 9. Be2 {[%clk 0:02:23.6]} 9... Qh4 {[%clk
0:01:52.6]} 10. g3 {[%clk 0:02:12.4]} 10... Qf6 {[%clk 0:01:52.8]} 11. f3 {[%clk
0:02:08.2]} 11... Bd7 {[%clk 0:01:52]} 12. Ne4 {[%clk 0:02:03.3]} 12... Qg6
{[%clk 0:01:46.8]} 13. Bd3 {[%clk 0:01:54.4]} 13... Na6 {[%clk 0:01:41.7]} 14.
a3 {[%clk 0:01:50.2]} 14... Kh8 {[%clk 0:01:34]} 15. Qe2 {[%clk 0:01:45.9]}
15... Qf7 {[%clk 0:01:28.9]} 16. Nxd6 {[%clk 0:01:37.2]} 16... cxd6 {[%clk
0:01:28.5]} 17. e4 {[%clk 0:01:32.3]} 17... Nc5 {[%clk 0:01:27.7]} 18. Bc2
{[%clk 0:01:25.9]} 18... Rac8 {[%clk 0:01:27.4]} 19. Kf1 {[%clk 0:01:16.1]}
19... Na4 {[%clk 0:00:59.1]} 20. Bxa4 {[%clk 0:01:14.8]} 20... Bxa4 {[%clk
0:01:00]} 21. Bc3 {[%clk 0:01:15]} 21... g5 {[%clk 0:00:48]} 22. Kg2 {[%clk
0:01:14.6]} 22... g4 {[%clk 0:00:48.1]} 23. h3 {[%clk 0:01:03.9]} 23... gxf3+
{[%clk 0:00:33.7]} 24. Nxf3 {[%clk 0:01:04.8]} 24... Qg6 {[%clk 0:00:31]} 25.
Nh4 {[%clk 0:01:00]} 25... Qg5 {[%clk 0:00:25.6]} 26. Raf1 {[%clk 0:00:59.6]}
26... Rg8 {[%clk 0:00:23.2]} 27. Qf3 {[%clk 0:00:38.4]} 27... Qxh4 {[%clk
0:00:21.7]} 28. Qf6+ {[%clk 0:00:35.5]} 28... Qxf6 {[%clk 0:00:20.4]} 29. Rxf6
{[%clk 0:00:36.4]} 29... Rg6 {[%clk 0:00:17.3]} 30. Rxd6 {[%clk 0:00:32.4]}
30... Rxd6 {[%clk 0:00:13.7]} 31. Bxe5+ {[%clk 0:00:32.1]} 31... Kg8 {[%clk
0:00:14.4]} 32. Bxd6 {[%clk 0:00:32.7]} 32... Rc2+ {[%clk 0:00:13.1]} 33. Kf3
{[%clk 0:00:32.7]} 33... Nf7 {[%clk 0:00:13.5]} 34. Bf4 {[%clk 0:00:30.6]} 34...
Rxb2 {[%clk 0:00:13.8]} 35. Re1 {[%clk 0:00:22.4]} 35... Rb3+ {[%clk 0:00:12.5]}
36. Re3 {[%clk 0:00:22.4]} 36... Rb1 {[%clk 0:00:10.5]} 37. e5 {[%clk
0:00:20.9]} 37... Rf1+ {[%clk 0:00:09.1]} 38. Kg4 {[%clk 0:00:18]} 38... Rd1
{[%clk 0:00:08.5]} 39. e6 {[%clk 0:00:17.9]} 39... Nh8 {[%clk 0:00:05.3]} 40. d6
{[%clk 0:00:17.4]} 40... Ng6 {[%clk 0:00:05.1]} 41. d7 {[%clk 0:00:17.2]} 41...
Nf8 {[%clk 0:00:04.8]} 42. e7 {[%clk 0:00:09.9]} 42... Bxd7+ {[%clk 0:00:04.6]}
43. Kh5 {[%clk 0:00:10.1]} 43... Ng6 {[%clk 0:00:04.5]} 44. e8=Q+ {[%clk
0:00:09.8]} 44... Bxe8 {[%clk 0:00:05.2]} 45. Rxe8+ {[%clk 0:00:10.3]} 45... Kf7
{[%clk 0:00:06.1]} 46. Rb8 {[%clk 0:00:09.4]} 46... Rd7 {[%clk 0:00:05.5]} 47.
Kg4 {[%clk 0:00:07.1]} 47... a6 {[%clk 0:00:05.2]} 48. h4 {[%clk 0:00:07.4]}
48... Nf8 {[%clk 0:00:04.9]} 49. h5 {[%clk 0:00:07.2]} 49... Ne6 {[%clk
0:00:03.3]} 50. Kf5 {[%clk 0:00:07.2]} 50... Nd4+ {[%clk 0:00:03.3]} 51. Ke4
{[%clk 0:00:07.2]} 51... Nc6 {[%clk 0:00:03]} 52. Rc8 {[%clk 0:00:04.7]} 52...
a5 {[%clk 0:00:02.7]} 53. g4 {[%clk 0:00:04.9]} 53... a4 {[%clk 0:00:02.9]} 54.
g5 {[%clk 0:00:05.3]} 54... Rd4+ {[%clk 0:00:03.4]} 55. Kf5 {[%clk 0:00:05.4]}
55... Rd5+ {[%clk 0:00:03.9]} 56. Ke4 {[%clk 0:00:05.8]} 56... Rd4+ {[%clk
0:00:04.3]} 57. Kf5 {[%clk 0:00:06.2]} 57... Ne7+ {[%clk 0:00:04.1]} 58. Ke5
{[%clk 0:00:04.7]} 58... Rxf4 {[%clk 0:00:04]} 59. Rh8 {[%clk 0:00:01.5]} 59...
Rf5+ {[%clk 0:00:04.5]} 60. Ke4 {[%clk 0:00:01.5]} 60... Rxg5 {[%clk 0:00:05.1]}
61. Rxh7+ {[%clk 0:00:02]} 61... Ke6 {[%clk 0:00:05.1]} 62. h6 {[%clk
0:00:02.3]} 62... Rg4+ {[%clk 0:00:05.5]} 63. Kf3 {[%clk 0:00:02.2]} 63... Rh4
{[%clk 0:00:05.9]} 64. Rh8 {[%clk 0:00:02.4]} 64... Ng6 {[%clk 0:00:04.6]} 65.
Rb8 {[%clk 0:00:01.9]} 65... Rxh6 {[%clk 0:00:04.4]} 66. Rxb7 {[%clk 0:00:02.3]}
66... Rh3+ {[%clk 0:00:04.9]} 67. Ke4 {[%clk 0:00:02.8]} 67... Rxa3 {[%clk
0:00:05.4]} 68. Rb6+ {[%clk 0:00:03.3]} 68... Kf7 {[%clk 0:00:06.1]} 69. Kd4
{[%clk 0:00:03.4]} 69... Ra1 {[%clk 0:00:05.8]} 70. Ra6 {[%clk 0:00:03.4]} 70...
Nf4 {[%clk 0:00:04.8]} 71. Kc4 {[%clk 0:00:03.2]} 71... Ne6 {[%clk 0:00:04.1]}
72. Kb4 {[%clk 0:00:03.1]} 72... Rb1+ {[%clk 0:00:04.4]} 73. Ka3 {[%clk
0:00:01.7]} 73... Rb3+ {[%clk 0:00:03.9]} 0-1

[Event "Early-Titled-Tuesday-Blitz-March-12-2024"]
[Site "Chess.com"]
[Date "2024.03.12"]
[Round "6"]
[White "Sam_ChessMood"]
[Black "Jospem"]
[Result "1/2-1/2"]
[WhiteElo "2977"]
[BlackElo "3125"]
[TimeControl "180+1"]
[EndTime "9:07:34 PDT"]
[Termination "Game drawn by repetition"]

1. e4 {[%clk 0:03:00.1]} 1... c5 {[%clk 0:02:58.9]} 2. Nf3 {[%clk 0:03:00.1]}
2... d6 {[%clk 0:02:59.7]} 3. d4 {[%clk 0:03:00.4]} 3... cxd4 {[%clk 0:03:00.6]}
4. Nxd4 {[%clk 0:03:00.9]} 4... a6 {[%clk 0:03:01.5]} 5. c4 {[%clk 0:03:00.1]}
5... e6 {[%clk 0:03:01.6]} 6. Nc3 {[%clk 0:03:00.3]} 6... Nf6 {[%clk 0:03:01.8]}
7. Be2 {[%clk 0:03:00.6]} 7... Be7 {[%clk 0:03:02.3]} 8. O-O {[%clk 0:03:00.9]}
8... O-O {[%clk 0:03:02.6]} 9. Be3 {[%clk 0:03:01.2]} 9... b6 {[%clk 0:03:03.2]}
10. Rc1 {[%clk 0:02:53.6]} 10... Bb7 {[%clk 0:02:58.2]} 11. f3 {[%clk 0:02:54]}
11... Nbd7 {[%clk 0:02:57.1]} 12. Qd2 {[%clk 0:02:53.5]} 12... Rc8 {[%clk
0:02:56.5]} 13. Rfd1 {[%clk 0:02:53.4]} 13... Qc7 {[%clk 0:02:56.9]} 14. Bf1
{[%clk 0:02:49.7]} 14... Qb8 {[%clk 0:02:57]} 15. Kh1 {[%clk 0:02:49.4]} 15...
Rfe8 {[%clk 0:02:56.5]} 16. a3 {[%clk 0:02:37.2]} 16... Bd8 {[%clk 0:02:56.2]}
17. b4 {[%clk 0:02:35.7]} 17... Bc7 {[%clk 0:02:56.3]} 18. Qf2 {[%clk
0:01:58.8]} 18... d5 {[%clk 0:02:31.4]} 19. cxd5 {[%clk 0:01:58.5]} 19... Bxh2
{[%clk 0:02:30.2]} 20. dxe6 {[%clk 0:01:52.9]} 20... fxe6 {[%clk 0:02:31.1]} 21.
Qh4 {[%clk 0:01:51.9]} 21... Be5 {[%clk 0:02:20.1]} 22. Nce2 {[%clk 0:01:43.4]}
22... Nf8 {[%clk 0:02:14.7]} 23. Qh3 {[%clk 0:01:34.1]} 23... Rcd8 {[%clk
0:02:09.6]} 24. Nb3 {[%clk 0:01:18.1]} 24... Bb2 {[%clk 0:01:58.9]} 25. Rb1
{[%clk 0:01:06.1]} 25... Rxd1 {[%clk 0:01:56.9]} 26. Rxd1 {[%clk 0:01:06.3]}
26... Bxa3 {[%clk 0:01:57.6]} 27. Bxb6 {[%clk 0:00:51.7]} 27... Bxb4 {[%clk
0:01:56.4]} 28. Bg1 {[%clk 0:00:45.1]} 28... Bc8 {[%clk 0:01:52.7]} 29. Nc5
{[%clk 0:00:40.4]} 29... a5 {[%clk 0:01:46.3]} 30. Nd3 {[%clk 0:00:37.8]} 30...
e5 {[%clk 0:01:41.1]} 31. Qg3 {[%clk 0:00:35.7]} 31... Ng6 {[%clk 0:01:41.4]}
32. Nxb4 {[%clk 0:00:31.3]} 32... axb4 {[%clk 0:01:42.3]} 33. Rb1 {[%clk
0:00:31.1]} 33... Be6 {[%clk 0:01:41.8]} 34. Qe1 {[%clk 0:00:24.6]} 34... b3
{[%clk 0:01:42.2]} 35. Nc1 {[%clk 0:00:18.9]} 35... Nh5 {[%clk 0:01:25.4]} 36.
Nd3 {[%clk 0:00:17.1]} 36... Bf7 {[%clk 0:01:17.7]} 37. Bf2 {[%clk 0:00:14.6]}
37... Qd6 {[%clk 0:01:04.6]} 38. Nc5 {[%clk 0:00:14.3]} 38... Rb8 {[%clk
0:01:04.4]} 39. Qc3 {[%clk 0:00:11.4]} 39... Ngf4 {[%clk 0:00:55.4]} 40. Nxb3
{[%clk 0:00:08]} 40... Qh6 {[%clk 0:00:50.8]} 41. Kg1 {[%clk 0:00:08.1]} 41...
Re8 {[%clk 0:00:47.4]} 42. Nc1 {[%clk 0:00:04.4]} 42... Qg5 {[%clk 0:00:48]} 43.
Kh2 {[%clk 0:00:03.8]} 43... Qh6 {[%clk 0:00:48.6]} 44. Kg1 {[%clk 0:00:03.6]}
44... Qg5 {[%clk 0:00:49.4]} 45. Kh2 {[%clk 0:00:04]} 45... Nf6 {[%clk
0:00:50.2]} 46. Nd3 {[%clk 0:00:03.9]} 46... Ng6 {[%clk 0:00:50.2]} 47. Kg1
{[%clk 0:00:03.6]} 47... h5 {[%clk 0:00:50.2]} 48. Qc1 {[%clk 0:00:03.8]} 48...
Qxc1 {[%clk 0:00:44.4]} 49. Rxc1 {[%clk 0:00:03.8]} 49... h4 {[%clk 0:00:45.3]}
50. Be3 {[%clk 0:00:03.7]} 50... Rd8 {[%clk 0:00:44]} 51. Nf2 {[%clk 0:00:03.6]}
51... Nh5 {[%clk 0:00:43.2]} 52. Rd1 {[%clk 0:00:03.8]} 52... Rc8 {[%clk
0:00:41.6]} 53. Nd3 {[%clk 0:00:04.1]} 53... Rc3 {[%clk 0:00:39.9]} 54. Rc1
{[%clk 0:00:04.1]} 54... Ra3 {[%clk 0:00:39.2]} 55. Bc5 {[%clk 0:00:04.2]} 55...
Rb3 {[%clk 0:00:39.2]} 56. Bd6 {[%clk 0:00:04.5]} 56... h3 {[%clk 0:00:31.8]}
57. Nxe5 {[%clk 0:00:04]} 57... hxg2 {[%clk 0:00:30.5]} 58. Bxg2 {[%clk
0:00:03.6]} 58... Nxe5 {[%clk 0:00:09.7]} 59. Bxe5 {[%clk 0:00:03.4]} 59... Be6
{[%clk 0:00:10.6]} 60. Kf2 {[%clk 0:00:03]} 60... Nf6 {[%clk 0:00:10.5]} 61.
Bxf6 {[%clk 0:00:02.6]} 61... gxf6 {[%clk 0:00:11.4]} 62. Bf1 {[%clk 0:00:03.2]}
62... Rb2+ {[%clk 0:00:11.4]} 63. Be2 {[%clk 0:00:03.5]} 63... Kf7 {[%clk
0:00:12.3]} 64. Ke3 {[%clk 0:00:03.7]} 64... Rb3+ {[%clk 0:00:12.3]} 65. Kf4
{[%clk 0:00:04.1]} 65... Rb7 {[%clk 0:00:11.7]} 66. Rc6 {[%clk 0:00:04]} 66...
Ke7 {[%clk 0:00:12.2]} 67. Rc5 {[%clk 0:00:03.9]} 67... Ra7 {[%clk 0:00:11.9]}
68. Rb5 {[%clk 0:00:03.9]} 68... Rc7 {[%clk 0:00:12.1]} 69. Ra5 {[%clk 0:00:04]}
69... Rb7 {[%clk 0:00:12.5]} 70. Bd3 {[%clk 0:00:03.9]} 70... Rd7 {[%clk
0:00:12.8]} 71. Bb5 {[%clk 0:00:03.2]} 71... Rc7 {[%clk 0:00:13.2]} 72. Ra6
{[%clk 0:00:03.3]} 72... Rb7 {[%clk 0:00:12.7]} 73. Bc6 {[%clk 0:00:03.6]} 73...
Rc7 {[%clk 0:00:13.3]} 74. Bd5 {[%clk 0:00:04]} 74... Bd7 {[%clk 0:00:13.9]} 75.
Ra5 {[%clk 0:00:03.4]} 75... Kd6 {[%clk 0:00:12.8]} 76. Ra1 {[%clk 0:00:03.3]}
76... Ke7 {[%clk 0:00:13.3]} 77. Rh1 {[%clk 0:00:03.2]} 77... Rc3 {[%clk
0:00:06.3]} 78. Rh7+ {[%clk 0:00:03]} 78... Ke8 {[%clk 0:00:06.4]} 79. Rh8+
{[%clk 0:00:03]} 79... Ke7 {[%clk 0:00:06.7]} 80. Rh7+ {[%clk 0:00:03.5]} 80...
Ke8 {[%clk 0:00:06.9]} 81. Rh6 {[%clk 0:00:03.2]} 81... Ke7 {[%clk 0:00:07.1]}
82. Rh7+ {[%clk 0:00:03.7]} 1/2-1/2